[Event "Satka Autumn 2020"]
[Site "Satka"]
[Date "2020.10.21"]
[Round "1.3"]
[White "Petrukhina, Olga"]
[Black "Voit, Daria"]
[Result "0-1"]
[ECO "D78"]
[WhiteElo "2109"]
[BlackElo "2343"]
[Annotator "RC"]
[PlyCount "100"]
[EventDate "2020.10.21"]
[EventType "swiss"]
[EventCountry "RUS"]
[SourceTitle "playchess.com"]
[Source "ChessBase"]
[SourceQuality "1"]
[TimeControl "5400+30"]

1. Nf3 {[%emt 0:00:00]} d5 {[%emt 0:00:00]} 2. g3 {[%emt 0:00:00]} Nf6 {[%emt 0:00:00]} 3. Bg2 {[%emt 0:00:00]} c6 {[%emt 0:00:06]} 4. c4 {[%emt 0:00:28]} g6 {[%emt 0:00:19]} 5. O-O {[%emt 0:00:16]} Bg7 {[%emt 0:00:03]} 6. d4 {[%emt 0:00:11]} O-O {[%emt 0:00:20]} 7. Qb3 {[%emt 0:00:09]} Qb6 {[%emt 0:00:07]} 8. Nc3 {[%emt 0:00:08]} Rd8 {[%emt 0:00:03]} 9. h3 {[%emt 0:02:57]} h6 {[%emt 0:00:15]} 10. c5 {[%emt 0:03:27]} Qxb3 {[%emt 0:00:10]} 11. axb3 {[%emt 0:00:01]} Na6 {[%emt 0:00:11]} 12. g4 {[%emt 0:08:22]} Nd7 {[%emt 0:01:06]} 13. Rd1 {[%emt 0:05:42]} Re8 {[%emt 0:03:05]} 14. Bd2 {[%emt 0:01:24]} e5 {[%emt 0:17:11]} 15. e3 {[%emt 0:00:24]} exd4 {[%emt 0:01:33]} 16. exd4 {[%emt 0:00:02]} Nc7 {[%emt 0:01:36]} 17. Bf1 {[%emt 0:04:56]} Ne6 {[%emt 0:01:06]} 18. Be3 {[%emt 0:00:12]} a6 {[%emt 0:01:14]} 19. b4 {[%emt 0:04:00]} Rb8 {[%emt 0:00:11]} 20. Bd3 {[%emt 0:02:32]} Ndf8 {[%emt 0:04:56]} 21. Ne2 {[%emt 0:11:26]} g5 {[%emt 0:02:32]} 22. Ng3 {[%emt 0:04:54]} Ng6 {[%emt 0:00:53]} 23. Nf5 {[%emt 0:03:52]} Nef4 {[%emt 0:04:07]} 24. Nd6 {[%emt 0:14:03]} Nxh3+ {[%emt 0:02:31]} 25. Kh2 {[%emt 0:01:09]} Bxg4 {[%emt 0:02:25]} 26. Bxg6 {[%emt 0:08:28]} fxg6 {[%emt 0:01:17]} 27. Nxe8 {[%emt 0:00:28]} Rxe8 {[%emt 0:00:18]} 28. Kg3 {[%emt 0:00:52]} h5 {[%emt 0:21:33]} 29. Rd2 {[%emt 0:07:19]} Bxf3 {[%emt 0:14:40]} 30. Kxf3 {[%emt 0:00:02]} g4+ {[%emt 0:00:08]} 31. Kg2 {[%emt 0:05:19]} g5 {[%emt 0:04:29]} 32. b5 {[%emt 0:01:34]} axb5 {[%emt 0:00:36]} 33. Ra7 {[%emt 0:00:09]} Re7 {[%emt 0:00:32]} 34. Ra8+ {[%emt 0:03:55]} Kf7 {[%emt 0:02:35]} 35. Rb8 {[%emt 0:03:09]} h4 {[%emt 0:01:40]} 36. b3 {[%emt 0:05:05]} Kg6 {[%emt 0:03:17]} 37. Ra2 {[%emt 0:00:57]} Nf4+ {[%emt 0:00:09]} 38. Bxf4 {[%emt 0:00:36]} gxf4 {[%emt 0:00:05]} 39. f3 {[%emt 0:00:12]} Kf5 {[%emt 0:02:15]} 40. fxg4+ {[%emt 0:00:20]} Kxg4 {[%emt 0:00:05]} 41. Rg8 {[%emt 0:00:34]} f3+ {[%emt 0:00:37]} 42. Kh2 {[%emt 0:00:54]} Re2+ {[%emt 0:05:09]} 43. Rxe2 {[%emt 0:00:11]} fxe2 {[%emt 0:00:03]} 44. Rxg7+ {[%emt 0:00:01]} Kf3 {[%emt 0:00:08]} 45. Re7 {[%emt 0:01:16]} Kf2 {[%emt 0:00:05]} 46. Rxb7 {[%emt 0:00:33]} e1=Q {[%emt 0:00:13]} 47. Rf7+ {[%emt 0:00:03]} Ke2 {[%emt 0:00:09]} 48. Re7+ {[%emt 0:00:01]} Kd2 {[%emt 0:00:08]} 49. Rxe1 {[%emt 0:00:09]} Kxe1 {[%emt 0:00:03]} 50. Kh3 {[%emt 0:00:11]} Kd2 {[%emt 0:00:05]} 0-1

[Event "Satka Autumn 2020"]
[Site "Satka"]
[Date "2020.10.23"]
[Round "3.12"]
[White "Nasybullina, Dayana"]
[Black "Stroganova, Karina"]
[Result "1/2-1/2"]
[ECO "B01"]
[WhiteElo "1802"]
[BlackElo "1825"]
[Annotator "NA RC"]
[PlyCount "98"]
[EventDate "2020.10.21"]
[EventType "swiss"]
[EventCountry "RUS"]
[SourceTitle "playchess.com"]
[Source "ChessBase"]
[SourceQuality "1"]
[TimeControl "5400+30"]

{[%evp 8,72,55,59,75,64,61,0,43,19,49,26,51,47,43,12,54,60,60,50,41,29,34,2,13,0,0,0,0,0,9,8,27,7,20,0,6,0,0,0,65,66,73,49,48,22,91,88,139,127,101,46,26,24,32,25,225,32767,233,8,32767,32767,32767,27,80,82,79]} 1. e4 {[%emt 0:00:00]} d5 {[%emt 0:00:00]} 2. exd5 {[%emt 0:00:03]} Qxd5 {[%emt 0:00:00]} 3. d4 {[%emt 0:00:23]} Nf6 {[%emt 0:00:49]} 4. Nf3 {[%emt 0:00:48]} g6 {[%emt 0:00:25]} 5. Be2 {[%emt 0:00:36]} Bg7 {[%emt 0:00:08]} 6. O-O {[%emt 0:00:13]} O-O {[%emt 0:00:06] B01: Scandinavian Defence.} 7. Bf4 {[%emt 0:05:49]} (7. c4 $16 Qd8 8. Nc3) 7... Qd8 {[%emt 0:03:33]} 8. c3 {[%emt 0:00:54] [#]} Nc6 $146 {[%emt 0:00:52]} ({Predecessor:} 8... Nbd7 9. Re1 b6 10. Ne5 Bb7 11. Bf3 Bxf3 12. Qxf3 Nxe5 13. Bxe5 Qd7 14. Na3 c6 {1-0 (28) Seils,J (2345)-Kauschmann,H (2220) Berlin 1993}) 9. Ne5 {[%emt 0:01:12]} Nxe5 {[%emt 0:01:05]} 10. Bxe5 {[%emt 0:00:17]} c6 {[%emt 0:00:35]} 11. a4 {[%emt 0:02:19]} b6 {[%emt 0:03:02]} 12. Bf3 {[%emt 0:00:52]} Bb7 {[%emt 0:00:13]} 13. Nd2 {[%emt 0:00:33]} Qd7 {[%emt 0:00:41]} 14. a5 {[%emt 0:00:44]} c5 {[%emt 0:01:47]} 15. axb6 {[%emt 0:05:20]} axb6 {[%emt 0:00:14]} 16. Qb3 {[%emt 0:00:40]} Bxf3 {[%emt 0:03:29]} 17. Nxf3 {[%emt 0:00:16]} Qc6 {[%emt 0:01:28]} 18. Qc4 {[%emt 0:07:39]} Ne4 {[%emt 0:14:12]} 19. dxc5 {[%emt 0:17:04]} Nxc5 {[%emt 0:03:49]} 20. Bxg7 {[%emt 0:01:55]} Kxg7 {[%emt 0:00:06]} 21. b4 {[%emt 0:00:37]} Qe4 {[%emt 0:01:01]} 22. Qb5 {[%emt 0:02:53]} Rxa1 {[%emt 0:09:26]} 23. Rxa1 {[%emt 0:00:09]} Nb3 {[%emt 0:00:16]} ({Black should play} 23... Qd3 $11 24. Qxb6 Qxc3) 24. Re1 {[%emt 0:02:03]} Qc2 {[%emt 0:00:35]} 25. Qe5+ {[%emt 0:14:08]} Kg8 {[%emt 0:01:20]} 26. h4 {[%emt 0:02:50]} h5 {[%emt 0:01:10]} (26... Nd2 $11 {keeps the balance.}) 27. Qc7 {[%emt 0:03:06]} Nd2 {[%emt 0:03:50]} (27... e6 $14) 28. Ng5 {[%emt 0:05:31]} ({Of course not} 28. Rxe7 $6 Qb1+ 29. Ne1 Ne4 $11) 28... b5 {[%emt 0:01:53]} 29. Nh3 {[%emt 0:11:36]} ({But not} 29. Rxe7 $6 Qb1+ 30. Kh2 Nf1+ 31. Kh1 Ne3+ 32. Kh2 Nd5 $11) ({White should play} 29. Qc5 $16) 29... Ne4 {[%emt 0:02:13]} 30. Qxe7 {[%emt 0:03:04]} Nxc3 {[%emt 0:00:27]} 31. Nf4 {[%emt 0:01:24]} Nd1 $2 {[%emt 0:02:05]} (31... Qf5 $1 $11 {and Black has nothing to worry.} 32. g3 Nd5 33. Nxd5 Qxd5) 32. Nxh5 {[%emt 0:05:14]} Qxf2+ {[%emt 0:00:16] [#]} 33. Kh1 $2 {[%emt 0:00:05]} ({Only move:} 33. Kh2 $1 $18 Qd4 34. Qf6 (34. Nf6+ Kg7 $16) 34... Qxf6 35. Nxf6+ Kg7 36. Nd7 (36. Rxd1 Kxf6 37. Rd5 Rb8 $14)) 33... Nc3 {[%emt 0:03:50]} 34. Nf6+ {[%emt 0:01:43]} Kg7 {[%emt 0:00:12]} 35. Ne8+ {[%emt 0:01:45]} Kh7 {[%emt 0:11:59] [#]} 36. Qe5 $1 {[%emt 0:01:28]} Qxh4+ $16 {[%emt 0:00:48]} 37. Kg1 {[%emt 0:00:08]} Kh6 {[%emt 0:01:44]} 38. Qg7+ {[%emt 0:01:27]} Kh5 {[%emt 0:00:47]} 39. Qxc3 {[%emt 0:01:28]} Qd8 {[%emt 0:02:41]} 40. Qh3+ {[%emt 0:00:48]} Kg5 {[%emt 0:00:13]} 41. Qe3+ {[%emt 0:00:33]} Kh5 {[%emt 0:00:13]} 42. Ng7+ {[%emt 0:00:24]} Kh4 {[%emt 0:00:35]} 43. Qh3+ {[%emt 0:00:48]} Kg5 {[%emt 0:00:09]} 44. Qe3+ {[%emt 0:00:18]} Kg4 {[%emt 0:00:26]} 45. Rf1 {[%emt 0:00:46]} Qd6 {[%emt 0:00:45]} 46. Qe4+ {[%emt 0:00:29]} Kg5 {[%emt 0:00:10]} 47. Ne6+ {[%emt 0:00:27]} fxe6 {[%emt 0:00:24]} 48. Qe3+ {[%emt 0:00:18]} Kh5 {[%emt 0:00:43]} 49. Qh3+ {[%emt 0:00:22]} Kg5 {[%emt 0:00:07]} 1/2-1/2

[Event "Satka Autumn 2020"]
[Site "Satka"]
[Date "2020.10.24"]
[Round "4.4"]
[White "Borisova, Ekaterina"]
[Black "Kovanova, Baira"]
[Result "1-0"]
[ECO "A45"]
[WhiteElo "2292"]
[BlackElo "2324"]
[Annotator "RC"]
[PlyCount "127"]
[EventDate "2020.10.21"]
[EventType "swiss"]
[EventCountry "RUS"]
[SourceTitle "playchess.com"]
[Source "ChessBase"]
[SourceQuality "1"]
[TimeControl "5400+30"]

1. d4 {[%emt 0:00:00]} Nf6 {[%emt 0:00:00]} 2. g3 {[%emt 0:00:00]} e6 {[%emt 0:00:00]} 3. Bg2 {[%emt 0:00:00]} d5 {[%emt 0:00:34]} 4. Nf3 {[%emt 0:00:03]} Be7 {[%emt 0:00:06]} 5. c4 {[%emt 0:00:09]} O-O {[%emt 0:00:06]} 6. O-O {[%emt 0:00:02]} c6 {[%emt 0:00:12]} 7. Qc2 {[%emt 0:00:06]} b6 {[%emt 0:00:04]} 8. Nbd2 {[%emt 0:00:05]} Bb7 {[%emt 0:00:05]} 9. e4 {[%emt 0:00:05]} Na6 {[%emt 0:00:11]} 10. a3 {[%emt 0:00:06]} c5 {[%emt 0:00:11]} 11. exd5 {[%emt 0:00:05]} exd5 {[%emt 0:00:04]} 12. dxc5 {[%emt 0:00:04]} Nxc5 {[%emt 0:00:07]} 13. b4 {[%emt 0:00:04]} Nce4 {[%emt 0:00:13]} 14. Bb2 {[%emt 0:01:16]} Rc8 {[%emt 0:03:42]} 15. Rad1 {[%emt 0:02:22]} dxc4 {[%emt 0:21:51]} 16. Nh4 {[%emt 0:17:22]} c3 {[%emt 0:14:01]} 17. Nxe4 {[%emt 0:01:53]} Bxe4 {[%emt 0:04:11]} 18. Bxe4 {[%emt 0:01:19]} cxb2 {[%emt 0:11:36]} 19. Rxd8 {[%emt 0:01:15]} Rfxd8 {[%emt 0:00:05]} 20. Qxb2 {[%emt 0:00:54]} Nxe4 {[%emt 0:00:05]} 21. Qe5 {[%emt 0:00:51]} Bxh4 {[%emt 0:06:20]} 22. Qxe4 {[%emt 0:00:25]} Bf6 {[%emt 0:00:08]} 23. Qb7 {[%emt 0:06:48]} Ra8 {[%emt 0:00:31]} 24. b5 {[%emt 0:09:05]} Rdb8 {[%emt 0:02:23]} 25. Qa6 {[%emt 0:00:18]} Rc8 {[%emt 0:03:34]} 26. Rd1 {[%emt 0:01:34]} Rc7 {[%emt 0:00:35]} 27. Rd6 {[%emt 0:05:52]} Rd8 {[%emt 0:02:01]} 28. Rxd8+ {[%emt 0:00:53]} Bxd8 {[%emt 0:00:12]} 29. Qa4 {[%emt 0:00:14]} h6 {[%emt 0:09:37]} 30. Qf4 {[%emt 0:02:30]} Rd7 {[%emt 0:03:12]} 31. Qb8 {[%emt 0:02:15]} Kf8 {[%emt 0:00:17]} 32. Kg2 {[%emt 0:00:29]} h5 {[%emt 0:04:27]} 33. Kf3 {[%emt 0:02:38]} g6 {[%emt 0:00:43]} 34. Ke4 {[%emt 0:02:48]} Ke8 {[%emt 0:08:33]} 35. f4 {[%emt 0:01:54]} f5+ {[%emt 0:00:39]} 36. Kf3 {[%emt 0:01:17]} Kf7 {[%emt 0:05:52]} 37. Qc8 {[%emt 0:00:22]} Ke7 {[%emt 0:00:40]} 38. Qc3 {[%emt 0:03:40]} Kf7 {[%emt 0:00:33]} 39. Qc4+ {[%emt 0:00:05]} Kf8 {[%emt 0:00:39]} 40. Qe6 {[%emt 0:01:22]} Rg7 {[%emt 0:00:20]} 41. Qd6+ {[%emt 0:00:36]} Ke8 {[%emt 0:00:08]} 42. a4 {[%emt 0:01:51]} Be7 {[%emt 0:01:03]} 43. Qc6+ {[%emt 0:04:20]} Kf7 {[%emt 0:00:05]} 44. Qb7 {[%emt 0:00:31]} Kg8 {[%emt 0:00:10]} 45. Qxa7 {[%emt 0:00:05]} Bc5 {[%emt 0:00:04]} 46. Qa8+ {[%emt 0:00:14]} Kh7 {[%emt 0:00:01]} 47. Qd5 {[%emt 0:00:45]} Ra7 {[%emt 0:00:16]} 48. Qc4 {[%emt 0:02:03]} Kg7 {[%emt 0:01:58]} 49. h3 {[%emt 0:00:05]} Kh7 {[%emt 0:01:10]} 50. g4 {[%emt 0:02:11]} hxg4+ {[%emt 0:00:03]} 51. hxg4 {[%emt 0:00:02]} fxg4+ {[%emt 0:00:09]} 52. Kxg4 {[%emt 0:00:03]} Kg7 {[%emt 0:00:19]} 53. Qe4 {[%emt 0:01:10]} Kh7 {[%emt 0:00:56]} 54. a5 {[%emt 0:02:30]} Rxa5 {[%emt 0:00:42]} 55. Kg5 {[%emt 0:00:07]} Ra7 {[%emt 0:00:39]} 56. Qxg6+ {[%emt 0:00:14]} Kh8 {[%emt 0:00:02]} 57. Qe8+ {[%emt 0:00:28]} Kh7 {[%emt 0:00:09]} 58. f5 {[%emt 0:00:17]} Rg7+ {[%emt 0:01:43]} 59. Kf6 {[%emt 0:00:40]} Kh6 {[%emt 0:00:35]} 60. Qh8+ {[%emt 0:01:28]} Rh7 {[%emt 0:00:01]} 61. Qg8 {[%emt 0:00:24]} Bd4+ {[%emt 0:00:06]} 62. Ke6 {[%emt 0:00:06]} Rg7 {[%emt 0:01:16]} 63. Qh8+ {[%emt 0:00:17]} Kg5 {[%emt 0:00:05]} 64. Qh2 {[%emt 0:00:07]} 1-0

[Event "Satka Autumn 2020"]
[Site "Satka"]
[Date "2020.10.24"]
[Round "4.12"]
[White "Stroganova, Karina"]
[Black "Alekseeva, Irina"]
[Result "0-1"]
[ECO "A01"]
[WhiteElo "1825"]
[BlackElo "2110"]
[Annotator "ChessBase"]
[PlyCount "102"]
[EventDate "2020.10.21"]
[EventType "swiss"]
[EventCountry "RUS"]
[SourceTitle "playchess.com"]
[Source "ChessBase"]
[SourceQuality "1"]
[TimeControl "5400+30"]

1. b3 {[%emt 0:00:00]} d5 {[%emt 0:00:00]} 2. Bb2 {[%emt 0:00:00]} c5 {[%emt 0:00:00]} 3. e3 {[%emt 0:00:12]} Nc6 {[%emt 0:00:07]} 4. Bb5 {[%emt 0:01:50]} Qc7 {[%emt 0:00:19]} 5. f4 {[%emt 0:00:14]} Nf6 {[%emt 0:01:30]} 6. Nf3 {[%emt 0:00:40]} Bg4 {[%emt 0:01:01]} 7. O-O {[%emt 0:03:21]} O-O-O {[%emt 0:00:34]} 8. Bxc6 {[%emt 0:01:38]} Qxc6 {[%emt 0:01:08]} 9. Ne5 {[%emt 0:04:34]} Bxd1 {[%emt 0:04:56]} 10. Nxc6 {[%emt 0:00:08]} bxc6 {[%emt 0:00:27]} 11. Rxd1 {[%emt 0:00:05]} d4 {[%emt 0:02:04]} 12. exd4 {[%emt 0:00:56]} cxd4 {[%emt 0:00:09]} 13. Na3 {[%emt 0:02:16]} e6 {[%emt 0:07:38]} 14. Nc4 {[%emt 0:00:15]} Bc5 {[%emt 0:00:27]} 15. Kf1 {[%emt 0:01:38]} Kc7 {[%emt 0:09:00]} 16. a3 {[%emt 0:01:31]} d3 {[%emt 0:04:50]} 17. b4 {[%emt 0:03:12]} dxc2 {[%emt 0:02:34]} 18. Rdc1 {[%emt 0:00:18]} Bd4 {[%emt 0:02:38]} 19. Rxc2 {[%emt 0:00:47]} Bxb2 {[%emt 0:01:54]} 20. Nxb2 {[%emt 0:00:25]} Rd4 {[%emt 0:00:37]} 21. g3 {[%emt 0:00:34]} Rhd8 {[%emt 0:00:26]} 22. Nc4 {[%emt 0:02:01]} Ne4 {[%emt 0:02:59]} 23. Ke2 {[%emt 0:01:11]} h5 {[%emt 0:07:00]} 24. Rac1 {[%emt 0:05:23]} f5 {[%emt 0:04:59]} 25. Ne5 {[%emt 0:21:40]} Rxd2+ {[%emt 0:01:43]} 26. Ke3 {[%emt 0:05:55]} Rxc2 {[%emt 0:01:12]} 27. Rxc2 {[%emt 0:00:07]} Rd6 {[%emt 0:00:41]} 28. a4 {[%emt 0:05:06]} Nf6 {[%emt 0:11:09]} 29. b5 {[%emt 0:01:30]} Nd5+ {[%emt 0:02:13]} 30. Ke2 {[%emt 0:01:54]} Nb4 {[%emt 0:02:29]} 31. Rc4 {[%emt 0:02:40]} a5 {[%emt 0:00:06]} 32. bxa6 {[%emt 0:02:20]} Nxa6 {[%emt 0:00:14]} 33. h3 {[%emt 0:04:07]} c5 {[%emt 0:01:17]} 34. g4 {[%emt 0:01:12]} hxg4 {[%emt 0:00:06]} 35. hxg4 {[%emt 0:00:04]} Rb6 {[%emt 0:01:34]} 36. Nd3 {[%emt 0:04:55]} Kd6 {[%emt 0:00:46]} 37. Rc1 {[%emt 0:02:59]} Kd5 {[%emt 0:00:54]} 38. gxf5 {[%emt 0:00:30]} exf5 {[%emt 0:00:04]} 39. Rg1 {[%emt 0:00:25]} c4 {[%emt 0:06:45]} 40. Ne5 {[%emt 0:01:00]} Rb4 {[%emt 0:00:50]} 41. a5 {[%emt 0:01:17]} Ke4 {[%emt 0:01:46]} 42. Rxg7 {[%emt 0:01:51]} Kxf4 {[%emt 0:00:33]} 43. Nc6 {[%emt 0:00:24]} Rb2+ {[%emt 0:00:17]} 44. Kd1 {[%emt 0:00:10]} Nc5 {[%emt 0:00:22]} 45. Rc7 {[%emt 0:01:03]} c3 {[%emt 0:11:02]} 46. Nd4 {[%emt 0:01:50]} Rd2+ {[%emt 0:01:39]} 47. Kc1 {[%emt 0:00:50]} Nd3+ {[%emt 0:01:49]} 48. Kb1 {[%emt 0:00:06]} Nb4 {[%emt 0:04:22]} 49. Nb3 {[%emt 0:06:06]} Rb2+ {[%emt 0:00:37]} 50. Kc1 {[%emt 0:00:26]} Rxb3 {[%emt 0:00:22]} 51. Rc8 {[%emt 0:01:37]} c2 {[%emt 0:00:40]} 0-1

[Event "Satka Autumn 2020"]
[Site "Satka"]
[Date "2020.10.24"]
[Round "4.13"]
[White "Baranova, Elizaveta"]
[Black "Nasybullina, Dayana"]
[Result "1-0"]
[ECO "B80"]
[WhiteElo "1794"]
[BlackElo "1802"]
[Annotator "NA RC"]
[PlyCount "63"]
[EventDate "2020.10.21"]
[EventType "swiss"]
[EventCountry "RUS"]
[SourceTitle "playchess.com"]
[Source "ChessBase"]
[SourceQuality "1"]
[TimeControl "5400+30"]

{[%evp 8,58,38,28,25,29,32767,32767,32767,32767,24,56,61,32767,72,19,32767,72,32767,32767,32767,32767,32767,32767,154,32767,129,105,173,32767,32767,32767,32767,32767,32767,32767,32767,32767,296,296,311,145,124,82,262,270,292,256,853,868,1852,2327,29988]} 1. e4 {[%emt 0:00:00]} c5 {[%emt 0:00:00]} 2. Nf3 {[%emt 0:00:00]} e6 {[%emt 0:00:00]} 3. d4 {[%emt 0:00:00]} cxd4 {[%emt 0:00:00]} 4. Nxd4 {[%emt 0:00:00]} Nf6 {[%emt 0:00:00]} 5. Nc3 {[%emt 0:00:17]} d6 {[%emt 0:00:00]} 6. Be3 {[%emt 0:00:16]} Be7 {[%emt 0:00:21]} 7. f3 {[%emt 0:00:58]} a6 {[%emt 0:00:13]} 8. Qd2 {[%emt 0:03:08]} b5 {[%emt 0:00:35]} 9. g4 {[%emt 0:00:44]} h6 {[%emt 0:00:28] B80: Sicilian Scheveningen: 6 g3 and 6 Be3, including English Attack.} 10. Be2 {[%emt 0:06:13]} Bb7 {[%emt 0:01:09]} (10... b4 $11 {keeps the balance.} 11. Na4 Bd7) 11. O-O-O {[%emt 0:03:03]} Nc6 {[%emt 0:01:29] [#]} 12. h4 $1 {[%emt 0:05:48] [#]} Nxd4 $146 {[%emt 0:05:20]} ({Predecessor:} 12... Nd7 13. Nxc6 Bxc6 14. g5 h5 15. Bf4 b4 16. Bxd6 bxc3 17. Qxc3 Ba4 18. Qxg7 Rf8 {1-0 (25) Gawel,L-Broza,A Poland 2002}) 13. Qxd4 {[%emt 0:00:53]} e5 {[%emt 0:01:54]} 14. Qd2 {[%emt 0:00:54]} Qa5 {[%emt 0:03:03]} 15. a3 {[%emt 0:02:14]} O-O-O {[%emt 0:03:08]} 16. Kb1 {[%emt 0:00:47]} Kb8 {[%emt 0:05:06]} 17. Ba7+ {[%emt 0:08:20]} Kxa7 {[%emt 0:05:45]} 18. Nxb5+ {[%emt 0:00:07]} Kb6 {[%emt 0:01:31]} 19. b4 {[%emt 0:00:15]} Qa4 {[%emt 0:01:36]} 20. Qe3+ {[%emt 0:00:08]} Kc6 {[%emt 0:00:50]} 21. Qc3+ {[%emt 0:00:18]} Kd7 {[%emt 0:00:49]} 22. Qc7+ {[%emt 0:01:10]} Ke8 {[%emt 0:03:59]} 23. Qxb7 {[%emt 0:01:18]} Kf8 {[%emt 0:02:10]} 24. Na7 {[%emt 0:00:42]} (24. Nc7 $18 {and White stays clearly on top.}) 24... Rd7 {[%emt 0:07:07]} 25. Qb8+ {[%emt 0:05:17]} (25. Qb6 $142) 25... Rd8 $2 {[%emt 0:01:29] [#]} (25... Ne8 $16 {was worth a try.}) 26. Qb6 $1 {[%emt 0:00:42]} Nd7 {[%emt 0:06:46]} 27. Qc7 {[%emt 0:01:28]} ({And not} 27. Qxa6 Qxa6 28. Bxa6 Ra8 $15) 27... Qxa3 $2 {[%emt 0:13:35]} (27... Nb8 28. Nc8 Qd7 29. Qxd7 (29. Qxb8 Rxc8 30. Qb6 Rc6 $16) 29... Rxd7) 28. Nc6 {[%emt 0:01:05]} Ke8 {[%emt 0:08:25]} 29. Rxd6 {[%emt 0:04:46]} f6 {[%emt 0:06:18]} 30. Rhd1 {[%emt 0:01:50]} Bxd6 {[%emt 0:01:15]} 31. Qxd8+ {[%emt 0:00:16]} Kf7 {[%emt 0:00:04]} 32. Qxd7+ {[%emt 0:00:15]} 1-0

[Event "Satka Autumn 2020"]
[Site "Satka"]
[Date "2020.10.27"]
[Round "7.12"]
[White "Filippova, Margarita"]
[Black "Vanishvili, Mari"]
[Result "1-0"]
[ECO "A41"]
[WhiteElo "1896"]
[BlackElo "1878"]
[Annotator "NA RC"]
[PlyCount "87"]
[EventDate "2020.10.21"]
[EventType "swiss"]
[EventCountry "RUS"]
[SourceTitle "playchess.com"]
[Source "ChessBase"]
[SourceQuality "1"]
[TimeControl "5400+30"]

{[%evp 8,58,39,38,31,19,38,22,41,25,42,30,28,32,38,29,41,22,53,32767,32767,-13,2,0,14,-22,21,18,42,42,29,24,45,43,86,114,126,117,138,90,93,91,124,114,116,129,116,51,101,54,120,95,158]} 1. d4 {[%emt 0:00:00]} d6 {[%emt 0:05:43]} 2. Nf3 {[%emt 0:00:00]} f5 {[%emt 0:00:09]} 3. g3 {[%emt 0:00:30]} g6 {[%emt 0:00:06]} 4. Bg2 {[%emt 0:00:04]} Bg7 {[%emt 0:00:04]} 5. O-O {[%emt 0:00:56]} Nf6 {[%emt 0:00:04]} 6. c3 {[%emt 0:00:51]} O-O {[%emt 0:00:11]} 7. Qb3+ {[%emt 0:01:16] 7.Qb3+ scores better than 7.Nbd2.} Kh8 {[%emt 0:00:36]} 8. Ng5 {[%emt 0:00:34]} d5 {[%emt 0:00:08] A81: Dutch Defence: 2 g3.} 9. Nd2 {[%emt 0:04:04]} Nc6 {[%emt 0:17:04]} 10. Ndf3 {[%emt 0:02:35]} h6 {[%emt 0:07:35]} 11. Nh3 {[%emt 0:00:13]} g5 {[%emt 0:00:12]} 12. Ne5 {[%emt 0:06:41]} Nxe5 {[%emt 0:03:11]} 13. dxe5 {[%emt 0:00:05]} Ne4 {[%emt 0:08:14] [#]} 14. Rd1 $146 {[%emt 0:12:09]} ({White should try Predecessor:} 14. f3 $14 Nc5 15. Qd1 c6 16. Be3 b6 17. b4 Ne6 18. f4 g4 19. Nf2 Bb7 20. Rb1 {0-1 (41) Gutman,L (2530)-Barbero,G (2405) Montpellier 1987}) 14... c6 {[%emt 0:04:31]} 15. f3 {[%emt 0:02:52]} Nc5 {[%emt 0:00:46]} 16. Qb4 {[%emt 0:01:08]} Na6 {[%emt 0:11:08]} 17. Qd4 {[%emt 0:01:37]} e6 {[%emt 0:01:17]} 18. f4 {[%emt 0:12:18]} g4 {[%emt 0:00:17]} 19. Nf2 {[%emt 0:00:12]} Qc7 {[%emt 0:13:34]} 20. b4 {[%emt 0:06:02]} Rd8 {[%emt 0:03:34]} 21. e4 {[%emt 0:01:31]} Bd7 {[%emt 0:00:33]} 22. exf5 {[%emt 0:01:19]} ({Resist} 22. exd5 $6 cxd5 23. a4 Rdc8 $14) 22... exf5 {[%emt 0:00:07]} 23. Be3 {[%emt 0:00:57]} Be6 {[%emt 0:01:52]} 24. Qd2 {[%emt 0:02:24]} b6 {[%emt 0:02:40]} 25. a4 {[%emt 0:03:04]} Bf8 {[%emt 0:06:20]} 26. Nd3 {[%emt 0:01:23]} Rac8 {[%emt 0:05:29]} 27. Qe2 {[%emt 0:03:57]} (27. a5 $16 Nb8 28. Qf2) 27... Nb8 {[%emt 0:02:14]} 28. Rd2 {[%emt 0:06:13]} Be7 {[%emt 0:01:28]} ({Better is} 28... c5 $14) 29. Rad1 {[%emt 0:01:31]} Qb7 $16 {[%emt 0:03:15]} 30. Ne1 {[%emt 0:01:57]} Nd7 {[%emt 0:01:08]} 31. Nc2 {[%emt 0:00:58]} Nf8 {[%emt 0:00:49]} 32. Nd4 {[%emt 0:01:01]} a6 {[%emt 0:00:54]} 33. Qd3 {[%emt 0:00:59]} Qd7 {[%emt 0:00:37]} 34. Qxa6 {[%emt 0:00:56]} Ra8 {[%emt 0:00:33]} 35. Qxb6 {[%emt 0:01:29]} Rxa4 {[%emt 0:00:31]} 36. Qxc6 {[%emt 0:01:23]} Rc8 {[%emt 0:00:07]} 37. Qxd7 {[%emt 0:00:22]} Bxd7 {[%emt 0:00:09]} 38. e6 {[%emt 0:01:31]} Bxe6 {[%emt 0:01:13]} 39. Nxe6 {[%emt 0:00:42]} Nxe6 {[%emt 0:00:06]} 40. Rxd5 {[%emt 0:02:39]} Rxc3 {[%emt 0:00:55]} 41. Re5 {[%emt 0:01:17]} Ra6 {[%emt 0:00:28]} 42. b5 {[%emt 0:00:27]} Ra2 {[%emt 0:00:33]} 43. Rxe6 {[%emt 0:00:52]} Rcc2 {[%emt 0:00:06]} 44. Bd4+ {[%emt 0:00:24]} 1-0